fUSD/lending_fUSD_20240526
["ID","MTS","AMOUNT","RATE_DAILY","PERIOD"]
[327986998,1716751847900,-151.0,0.000245,7]
[327986999,1716751847910,-412.883378,0.000245,7]
[327987000,1716751847919,-151.0,0.000245,7]
[327987001,1716751847928,-151.0,0.000245,7]
[327987002,1716751847937,-151.0,0.000245,7]
[327987003,1716751847947,-151.0,0.000245,7]
[327987004,1716751847964,-151.0,0.000245,7]
[327987005,1716751847979,-151.0,0.000245,7]
[327987006,1716751847994,-1381.877133,0.000245,7]
[327987007,1716751848007,-1381.877133,0.000245,7]
[327987008,1716751848021,-151.0,0.000245,7]
[327987009,1716751848034,-151.0,0.000245,7]
[327987010,1716751848046,-151.0,0.000245,7]
[327987011,1716751848059,-151.0,0.000245,7]
[327987012,1716751848071,-151.0,0.000245,7]
[327987013,1716751848084,-151.0,0.000245,7]
[327987014,1716751848096,-150.0,0.000245,4]
[327987015,1716751848108,-151.0,0.000245,7]
[327987016,1716751848120,-160.637387,0.000245,7]
[327987017,1716751848133,-160.637387,0.000245,7]
[327987018,1716751848145,-151.0,0.000245,7]
[327987019,1716751848158,-197.172,0.00024537,2]
[327987020,1716751848169,-215.0,0.00024537,2]
[327987021,1716751848181,-1650.0,0.00024537,2]
[327987022,1716751848195,-784.115,0.00024537,2]
[327987023,1716751848208,-282.075,0.00024537,2]
[327987024,1716751848221,-5138.0,0.00024537,2]
[327987025,1716751848233,-972.0,0.00024537,2]
[327987026,1716751848245,-154.87612263,0.00024556,2]
[327987027,1716751848256,-10629.0,0.00024596,2]
[327987028,1716751848268,-19623.63845774,0.000246,2]
[327987029,1716751848283,-1051.01,0.000246,2]
[327987030,1716751848296,-166.66666666,0.00024617,2]
[327987031,1716751848308,-154.91992413,0.00024638,2]
[327987032,1716751848321,-1000.0,0.000247,2]
[327987033,1716751848333,-152.28644427,0.00024799,2]
[327987034,1716751848345,-152.28644427,0.00024867,2]
[327987035,1716751848356,-154.43062866,0.00024872,2]
[327987036,1716751848368,-3336.74470302,0.00024889,2]
[327987037,1716751848379,-3336.74470296,0.00024889,2]
[327987038,1716751848389,-3336.74470296,0.00024889,2]
[327987039,1716751848399,-3336.74470296,0.00024889,2]
[327987040,1716751848412,-3336.74470296,0.00024889,2]
[327987041,1716751848422,-151.0,0.00024889,7]
[327987042,1716751848434,-225.692329,0.00024889,7]
[327987043,1716751848446,-10295.45142555,0.00024898,2]
[327987044,1716751848457,-10295.45142546,0.00024898,2]
[327987045,1716751848469,-10295.45142546,0.00024898,2]
[327987046,1716751848481,-10295.45142546,0.00024898,2]
[327987047,1716751848493,-10295.45142546,0.00024898,2]
[327987048,1716751848505,-171.48,0.000249,2]
[327987049,1716751848520,-3000.0,0.000249,2]
[327987050,1716751848533,-154.93677966,0.00024943,2]
[327987051,1716751848547,-2209.8444718,0.00024983,2]
[327987052,1716751848560,-2203.51048212,0.00025,2]
[327987053,1716751848573,-2859.16030234,0.00025,2]
[327987054,1716751848594,-155.0,0.00025,2]
[327987055,1716751848609,-224.42312563,0.00025,2]
[327987056,1716751848621,-5000.0,0.00025,7]
[327987057,1716751848632,-155.48021465,0.00025,2]
[327987058,1716751848643,-155.0,0.00025,2]
[327987059,1716751848655,-1273.04480619,0.00025,2]
[327987060,1716751848669,-927.24854719,0.00025,2]
[327987061,1716751848683,-158.77187346,0.00025,2]
[327987062,1716751848697,-337.83654728,0.00025,7]
[327987063,1716751848711,-155.3206085,0.00025,2]
[327987064,1716751848725,-150.0,0.00025,2]
[327987065,1716751848736,-472278.55657155,0.00025,2]
[327987066,1716751848794,-143387.75235025,0.00025,2]
[327987067,1716751848938,-10000.0,0.00016101,2]
[327987068,1716751848950,-1185.28256148,0.00016748,2]
[327987069,1716751848962,-435.50620303,0.00025,2]
[327987070,1716751848977,-3445.572,0.00025,2]
[327987071,1716751849020,-200357.73800292,0.00025,2]
[327987072,1716751849048,-90598.36852037,0.00025,2]
[327987075,1716752703982,-1345.18750747,0.00012613,2]
[327987076,1716752704002,-318.97806809,0.0001277,2]
[327987077,1716752704020,-335.83442444,0.0001277,2]
[327987078,1716752705691,-623.14327556,0.0001277,2]
[327987079,1716752705711,-321.8883,0.0001277,2]
[327987080,1716752705733,-150.0,0.00012849,2]
[327987081,1716752705752,-462.6301991,0.00012856,2]
[327987082,1716752705771,-205.20917542,0.00012868,2]
[327987083,1716752705790,-237.12904992,0.00012868,2]
[327987084,1716752746066,-2000.0,0.0001277,2]
[327987085,1716752758196,-500.0,0.0001277,2]
[327987086,1716752758218,-22.04092767,0.00012868,2]
[327987087,1716752758242,-1477.95907233,0.00012869,2]
[327987099,1716753031756,-1207.66447128,0.00012869,2]
[327987100,1716753031767,-299.15348563,0.00012869,2]
[327987101,1716753031776,-410.08212737,0.00012869,2]
[327987102,1716753031785,-161.03410793,0.0001287,2]
[327987103,1716753031795,-3731.642,0.00012872,2]
[327987104,1716753031804,-3621.013,0.00012874,2]
[327987105,1716753031813,-3704.22,0.00012877,2]
[327987106,1716753031823,-1000.0,0.000129,2]
[327987107,1716753031833,-7500.0,0.000129,2]
[327987108,1716753031843,-318.97806809,0.000129,2]
[327987109,1716753031852,-3729.94125571,0.000129,2]
[327987110,1716753031861,-400.1594003,0.000129,2]
[327987111,1716753031871,-608.14181872,0.000129,2]
[327987112,1716753031880,-200.27328274,0.000129,2]
[327987113,1716753031889,-4749.94545187,0.00013,2]
[327987114,1716753031900,-68454.5559574,0.00013,2]
[327987115,1716753031994,-1000.82230701,0.00013,2]
[327987116,1716753032006,-201093.49983788,0.00013,2]
[327987123,1716753037756,-27042.4,0.00013,2]
[327987124,1716753037769,-50253.41304148,0.00013,2]
[327987125,1716753037780,-2443.62493674,0.00013,2]
[327987126,1716753037793,-31733.60735732,0.00013,2]
[327987127,1716753037804,-22870.61548791,0.00013,2]
[327987128,1716753037818,-22023.78901908,0.00013,2]
[327987129,1716753037938,-697.76274,0.00013,2]
[327987130,1716753037949,-810.16228092,0.00013,2]
[327987131,1716753038000,-2544.59317156,0.00013,2]
[327987132,1716753038011,-22520.28565756,0.00013,2]
[327987135,1716753040750,-5348.84120625,0.00013,2]
[327987136,1716753040815,-18806.4295995,0.00013,2]
[327987137,1716753040936,-690.40379048,0.00013,2]
[327987138,1716753040948,-1902.0513892,0.00013,2]
[327987173,1716753043135,-75826.86422275,0.00013,2]
[327987191,1716753045841,-718.26819517,0.00013,2]
[327987192,1716753045906,-55093.34880779,0.00013,2]
[327987193,1716753045972,-813.3,0.00013,2]
[327987195,1716753193805,1000.0,0.00030918,120]
[327987202,1716754151147,-155.0,9.54e-05,2]
[327987203,1716754151168,-150.0,9.541e-05,2]
[327987204,1716754151200,-150.0,9.541e-05,2]
[327987205,1716754151223,-3287.82954979,9.542e-05,2]
[327987206,1716754151244,-189.56475021,9.542e-05,2]
[327987207,1716754167125,-526.60043023,9.541e-05,2]
[327987208,1716754167147,-147.79447114,9.542e-05,2]
[327987209,1716754167168,-529.79565751,9.542e-05,2]
[327987210,1716754167190,-158.44,9.56e-05,2]
[327987211,1716754167212,-311.23,9.865e-05,2]
[327987212,1716754167234,-82.97391984,0.00010124,2]
[327987220,1716754232096,-128.46062269,0.00010124,2]
[327987221,1716754232107,-299.15348563,0.00010124,2]
[327987222,1716754232117,-723.04056373,0.00011643,2]
[327987223,1716754232129,-746.56164777,0.00011643,2]
[327987224,1716754232140,-30.3977885,0.00011643,2]
[327987225,1716754232150,-250.0,0.00011758,2]
[327987226,1716754232161,-499.99,0.00011758,2]
[327987227,1716754232170,-49.69910248,0.00011867,2]
[327987228,1716754232182,-535.511,0.00011867,2]
[327987229,1716754232210,-23314.78989752,0.00011867,2]
[327987230,1716754232220,-250.0,0.00011892,2]
[327987231,1716754232229,-1866.67,0.00011917,2]
[327987232,1716754232239,-1000.0,0.00012009,2]
[327987233,1716754232248,-311.23,0.00012129,2]
[327987234,1716754232258,-9228.98661669,0.00012471,2]
[327987235,1716754232269,-4920.09388331,0.00012471,2]
[327987236,1716754232278,-1045.57064922,0.0001274,2]
[327987237,1716754232288,-1068.1255754,0.0001274,2]
[327987238,1716754232297,-1190.75326143,0.0001274,2]
[327987239,1716754232306,-380.70037141,0.00012768,2]
[327987240,1716754232316,-252.68598435,0.00012769,2]
[327987241,1716754232325,-1040.48423752,0.000128,2]
[327987242,1716754232345,-1107.29736248,0.000128,2]
[327987243,1716754232354,-319.919246,0.000128,2]
[327987244,1716754232363,-972.78339152,0.0001287,2]
[327987245,1716754232378,-956.0721124,0.0001287,2]
[327987246,1716754232390,-960.42655982,0.0001287,2]
[327987247,1716754232400,-5501.46363943,0.0001287,2]
[327987248,1716754232412,-500.0,0.0001287,2]
[327987249,1716754232438,-1161.0,0.0001287,2]
[327987250,1716754232449,-3997.2538822,0.0001287,2]
[327987251,1716754232496,-2067.60580723,0.0001287,2]
[327987259,1716754237952,-410.08212737,0.00010124,2]
[327987260,1716754237962,-359.0,0.00011584,2]
[327987261,1716754237972,-2630.87109083,0.0001287,2]
[327987262,1716754238006,-1391.18950319,0.0001287,2]
[327987263,1716754238064,-11173.28218867,0.0001287,2]
[327987264,1716754238077,-13406.05182471,0.0001287,2]
[327987265,1716754238087,-3670.048,0.0001288,2]
[327987266,1716754238096,-655.98530104,0.00012898,2]
[327987267,1716754238117,-57.95005396,0.00012898,2]
[327987268,1716754238126,-260.59326051,0.00012898,2]
[327987269,1716754238137,-186.62393456,0.00012898,2]
[327987270,1716754238146,-210.49319076,0.00012898,2]
[327987271,1716754238155,-132.70420813,0.00012898,2]
[327987272,1716754238173,-25.20456391,0.00012898,2]
[327987273,1716754238183,-883.0724361,0.00012898,2]
[327987274,1716754238191,-155.0,0.00012898,2]
[327987275,1716754238200,-2060.65120708,0.00012898,2]
[327987276,1716754238210,-337.12183531,0.00012898,2]
[327987277,1716754238219,-541.55577053,0.00012898,2]
[327987278,1716754238228,-466.23800503,0.00012898,2]
[327987279,1716754238238,-790.48715204,0.00012899,2]
[327987280,1716754238247,-1000.0,0.000129,2]
[327987281,1716754238256,-14315.83484431,0.000129,2]
[327987282,1716754238268,-13796.77535432,0.000129,2]
[327987283,1716754238278,-7706.84209174,0.000129,2]
[327987284,1716754238289,-3062.67819403,0.000129,2]
[327987285,1716754238300,-999.05068868,0.000129,2]
[327987286,1716754238311,-3726.19972867,0.000129,2]
[327987287,1716754238325,-3160.32475779,0.000129,2]
[327987288,1716754238337,-17536.23838421,0.000129,2]
[327987326,1716754241210,-1998.5,0.000129,2]
[327987327,1716754241320,-8724.05439088,0.000129,2]
[327987328,1716754241333,-2788.00917493,0.000129,2]
[327987329,1716754241352,-641.34967595,0.000129,2]
[327987356,1716754244801,-1133.20005046,0.000129,2]
[327987357,1716754244814,-397.00005046,0.000129,2]
[327987358,1716754244826,-1640.91763236,0.000129,2]
[327987359,1716754244837,-975.40414729,0.000129,2]
[327987360,1716754244849,-1299.7799031,0.000129,2]
[327987361,1716754246011,-299.15348563,0.00010124,2]
[327987362,1716754246021,-332.39748498,0.000129,2]
[327987363,1716754246179,-5033.43349259,0.000129,2]
[327987364,1716754246191,-1595.25934319,0.000129,2]
[327987365,1716754246237,-2442.62530082,0.000129,2]
[327988841,1716754396416,1000.0,0.00030222,120]
[327988933,1716755119255,-344.8307424,9.91e-05,2]
[327988934,1716755119286,-298.54,9.911e-05,2]
[327988935,1716755119310,-526.60043023,0.00010089,2]
[327988936,1716755119332,-410.22574927,0.0001009,2]
[327988937,1716755119355,-408.41867228,0.00010124,2]
[327988938,1716755119380,-889.01,0.00010959,2]
[327988939,1716755119402,-250.0,0.00011687,2]
[327988940,1716755119425,-250.0,0.00011692,2]
[327988942,1716755119449,-1346.03,0.00011795,2]
[327988951,1716755120693,1387.20873514,9.91e-05,2]
[327988952,1716755139022,202.99,0.00010959,2]
[327988953,1716755140084,477.9410678,0.00011389,2]
[327988954,1716755149589,169.16,0.00010959,2]
[327988955,1716755160299,845.83,0.00010959,2]
[327988956,1716755247137,299.15348563,0.00010959,2]
[327988957,1716755267059,298.03110112,0.00010959,2]
[327988965,1716755348163,-160.89,0.00011796,2]
[327988966,1716755348183,-1387.20873514,0.00011893,2]
[327988967,1716755348203,-168.7,0.00011894,2]
[327988968,1716755348224,-1350.3,0.00011956,2]
[327988969,1716755348246,-1000.0,0.00011976,2]
[327988970,1716755348266,-499.99,0.00011976,2]
[327988971,1716755348285,-1500.0,0.00011988,2]
[327988972,1716755348304,-316.37,0.00012042,2]
[327988973,1716755348322,-211.27,0.00012055,2]
[327988974,1716755348341,-298.54,0.00012175,2]
[327988975,1716755348360,-24228.62,0.00012175,2]
[327988976,1716755348384,-3000.0,0.0001277,2]
[327988977,1716755348405,-1016.53872738,0.00012789,2]
[327988978,1716755348424,-407.30023804,0.00012797,2]
[327988979,1716755348643,-397.56440907,0.00012797,2]
[327988980,1716755348662,-3092.38465923,0.00012797,2]
[327988981,1716755348681,-2918.4686413,0.00012797,2]
[327988982,1716755348699,-3286.97999917,0.00012797,2]
[327988983,1716755348719,-1245.7861,0.00012797,2]
[327988984,1716755348738,-320.71431694,0.00012797,2]
[327988985,1716755348757,-1688.64927373,0.00012799,2]
[327988986,1716755353112,-5005.47602627,0.00012799,2]
[327988987,1716755353132,-27476.1765,0.00012799,2]
[327988988,1716755353154,-91961.79747373,0.00012799,2]
[327989010,1716755364151,-1391.8203517,0.00012798,2]
[327989011,1716755364171,-5804.5324483,0.00012799,2]
[327989070,1716755432240,-13796.7754,0.00012699,2]
[327989071,1716755432251,-147233.67007797,0.00012799,2]
[327989072,1716755432262,-1000.0,0.000128,2]
[327989073,1716755432271,-313.9992055,0.00012896,2]
[327989074,1716755432280,-15626.13355344,0.00012897,2]
[327989075,1716755432303,-2561.60739851,0.00012897,2]
[327989076,1716755432316,-2686.77929819,0.00012897,2]
[327989077,1716755432328,-10235.97392341,0.00012897,2]
[327989078,1716755432340,-19735.06986418,0.00012897,2]
[327989079,1716755432554,-8798.23435002,0.00012897,2]
[327989080,1716755432566,-8922.76417388,0.00012897,2]
[327989081,1716755432585,-2775.25944,0.00012897,2]
[327989116,1716755438299,-3481.19999998,0.00012897,2]
[327989117,1716755438312,-15377.22721383,0.00012897,2]
[327989118,1716755438535,-915.42729731,0.00012897,2]
[327989119,1716755438655,-240.96048966,0.00012897,2]
[327989136,1716755440798,-504.08999982,0.00012897,2]
[327989137,1716755443664,-3204.69442575,0.00012897,2]
[327989140,1716755446497,-6600.21775364,0.00012897,2]
[327989142,1716755458879,423.71279463,0.00011698,2]
[327989143,1716755510011,2549.58812161,9.673e-05,2]
[327989148,1716755526007,865.90584093,8.774e-05,2]
[327989157,1716755698775,285.84,0.00010206,2]
[327989182,1716756189169,271.54,0.0001018,2]
[327989187,1716756529733,4589.54325896,0.0001018,2]
[327989188,1716756551129,-489.37546988,0.00010179,2]
[327989189,1716756551150,-2810.25265527,0.0001018,2]
[327989190,1716756552171,-265115.79,0.0001018,2]
[327989192,1716756558119,-24550.973,0.0001018,2]
[327989194,1716756560155,-2923.08951681,0.0001018,2]
[327989195,1716756561117,-85373.93775818,0.0001018,2]
[327989197,1716756567115,-40753.232,0.0001018,2]
[327989198,1716756570104,-488.53172476,0.00010179,2]
[327989199,1716756570126,-1698.09918946,0.0001018,2]
[327989200,1716756572107,-969.9250218,0.0001018,2]
[327989233,1716756631548,-3851.19083298,0.0001018,2]
[327989236,1716756631561,-1265.1063035,0.0001018,2]
[327989239,1716756631572,-1294.21812466,0.0001018,2]
[327989241,1716756631584,-1553.22652393,0.0001018,2]
[327989242,1716756631595,-18814.10410755,0.0001018,2]
[327989243,1716756631604,-159.95559317,0.000117,2]
[327989244,1716756631614,-2461.29111359,0.000118,2]
[327989246,1716756631623,-512.37522663,0.0001206,2]
[327989247,1716756631635,-605.03477337,0.0001206,2]
[327989248,1716756631645,-250.0,0.00012085,2]
[327989249,1716756631654,-250.0,0.00012098,2]
[327989250,1716756631664,-1000.0,0.00012142,2]
[327989251,1716756631673,-271.54,0.00012444,2]
[327989252,1716756631683,-1161.0,0.0001277,2]
[327989253,1716756631693,-314.4238,0.000128,2]
[327989254,1716756631702,-240.44100925,0.00012869,2]
[327989255,1716756631712,-499.99,0.00012869,2]
[327989256,1716756631722,-465.43,0.00012869,2]
[327989257,1716756631731,-1897.43174259,0.00012896,2]
[327989258,1716756631743,-3281.16982972,0.00012897,2]
[327989259,1716756631756,-1302.27342757,0.00012897,2]
[327989260,1716756631793,-1306.24,0.00012897,2]
[327989261,1716756631810,-33191.77524471,0.00012897,2]
[327989262,1716756631820,-15067.28065912,0.00012897,2]
[327989263,1716756631830,-3000.0,0.00012897,2]
[327989264,1716756631841,-157.41331786,0.00012898,2]
[327989265,1716756631851,-5272.17642688,0.00012899,2]
[327989266,1716756631861,-155.08356513,0.00012899,2]
[327989267,1716756631871,-155.54702815,0.00012899,2]
[327989268,1716756631881,-7521.94316228,0.00012899,2]
[327989269,1716756631890,-4294.64652253,0.00012899,2]
[327989270,1716756631900,-318.04989705,0.00012899,2]
[327989271,1716756631910,-266.42429918,0.00012899,2]
[327989272,1716756631924,-298.89054864,0.00012899,2]
[327989273,1716756631934,-165.47416918,0.00012899,2]
[327989274,1716756631944,-7180.883914,0.000129,2]
[327989275,1716756631955,-16611.32137586,0.000129,2]
[327989276,1716756631967,-1723.54838405,0.000129,2]
[327989281,1716756637527,-5379.90445819,0.000129,2]
[327989287,1716756640168,-1721.2,0.000129,2]
[327989304,1716756642759,-6815.73294515,0.000129,2]
[327989305,1716756642847,-46217.71943675,0.000129,2]
[327989306,1716756642856,-6457.72293586,0.000129,2]
[327989307,1716756642866,-166.0239256,0.000129,2]
[327989308,1716756642875,-2980.6121,0.000129,2]
[327989309,1716756642885,-10000.0,0.000129,2]
[327989310,1716756642894,-5570.38290967,0.000129,2]
[327989311,1716756642904,-889.84004813,0.000129,2]
[327989312,1716756642913,-436.65989964,0.000129,2]
[327989313,1716756642923,-4597.25690778,0.00012986,2]
[327989314,1716756642932,-155.0,0.00012998,2]
[327989315,1716756642942,-321.83343734,0.00012998,2]
[327989316,1716756642951,-155.0,0.00012998,2]
[327989317,1716756642963,-1465.62018346,0.00012998,2]
[327989318,1716756642972,-2000.83899828,0.00012998,2]
[327989319,1716756642982,-1386.55437292,0.00012998,2]
[327989320,1716756642991,-15003.84293463,0.00012998,2]
[327989321,1716756643001,-723.13012267,0.00012998,2]
[327989322,1716756643211,-492.29897975,0.00012998,2]
[327989323,1716756643221,-197.3115169,0.00012998,2]
[327989327,1716756645803,-1326.88150116,0.000129,2]
[327989328,1716756645835,-2803.64938997,0.000129,2]
[327989329,1716756645849,-2613.88196592,0.000129,2]
[327989330,1716756645860,-755.58714295,0.000129,2]
[327989331,1716756645869,-516.34943982,0.00012998,2]
[327989332,1716756645879,-173.18653519,0.00012999,2]
[327989333,1716756645888,-2819.00314972,0.00012999,2]
[327989334,1716756645898,-150.01,0.00012999,2]
[327989335,1716756645907,-5878.10725891,0.00012999,2]
[327989336,1716756645917,-70298.87647341,0.00013,2]
[327989337,1716756645960,-75914.32381321,0.00013,2]
[327989340,1716756648163,400.0,0.000124,4]
[327989341,1716756650320,900.0,0.000125,4]
[327989342,1716756652445,1300.0,0.000126,4]
[327989343,1716756654540,1800.0,0.000127,4]
[327989344,1716756656638,2200.0,0.000128,4]
[327989345,1716756658834,400.0,0.000129,4]
[327989360,1716757757106,-158.44,9.404e-05,2]
[327989361,1716757757129,-165.40714542,9.867e-05,2]
[327989362,1716757763094,-526.60043023,9.403e-05,2]
[327989363,1716757763116,-1.43236977,9.867e-05,2]
[327989364,1716757767156,-93.11048481,9.867e-05,2]
[327989365,1716757767176,-744.26,0.00011809,2]
[327989366,1716757767196,-783.4182797,0.00011819,2]
[327989367,1716757772119,-16.5817203,0.00011819,2]
[327989368,1716757772139,-250.0,0.00011829,2]
[327989369,1716757772159,-259.95,0.00012131,2]
[327989370,1716757772178,-1071.1,0.00012665,2]
[327989371,1716757772198,-1071.1,0.00012668,2]
[327989372,1716757772220,-1071.1,0.00012671,2]
[327989373,1716757772240,-1071.1,0.00012675,2]
[327989374,1716757772263,-1071.1,0.00012678,2]
[327989375,1716757772283,-1071.1,0.00012681,2]
[327989376,1716757772304,-1071.1,0.00012685,2]
[327989377,1716757772324,-1071.1,0.00012688,2]
[327989378,1716757772346,-1071.1,0.00012691,2]
[327989379,1716757772365,-1071.1,0.00012695,2]
[327989380,1716757772386,-1071.1,0.00012698,2]
[327989381,1716757772406,-1071.1,0.00012701,2]
[327989382,1716757772425,-1071.1,0.00012705,2]
[327989383,1716757772444,-1071.1,0.00012708,2]
[327989384,1716757772463,-1071.1,0.00012711,2]
[327989385,1716757772483,-1071.1,0.00012715,2]
[327989386,1716757772503,-1071.1,0.00012718,2]
[327989387,1716757772521,-1071.1,0.00012721,2]
[327989388,1716757772540,-1071.1,0.00012725,2]
[327989389,1716757772560,-1071.1,0.00012728,2]
[327989390,1716757772578,-529.79565751,0.00012799,2]
[327989391,1716757772598,-11351.32621883,0.000128,2]
[327989413,1716757831753,-658.0,9.675e-05,2]
[327989414,1716757831764,-1090.27219311,0.00011828,2]
[327989415,1716757831774,-3634.07049406,0.000128,2]
[327989416,1716757831789,-512.85,0.000128,2]
[327989417,1716757831826,-406.88491914,0.000128,2]
[327989418,1716757831838,-1362.09284991,0.000128,2]
[327989419,1716757831861,-303.8,0.000128,2]
[327989420,1716757832022,-25540.36760643,0.000128,2]
[327989421,1716757832093,-362.84660977,0.000128,2]
[327989422,1716757832106,-1972.58392134,0.000128,2]
[327989423,1716757832118,-510.3000105,0.000128,2]
[327989424,1716757832129,-260.59687002,0.000128,2]
[327989425,1716757832139,-339.29362947,0.000128,2]
[327989431,1716757838152,-70.7884979,0.000128,2]
[327989432,1716757838162,-245.8315021,0.000128,2]
[327989433,1716757838193,-0.00558925,0.000128,2]
[327989434,1716757838268,-97874.99331573,0.000128,2]
[327989435,1716757838387,-449841.72953068,0.000128,2]
[327989436,1716757838398,-48862.5389,0.00012898,2]
[327989437,1716757838408,-3622.13,0.000129,2]
[327989438,1716757838418,-3696.157,0.000129,2]
[327989439,1716757838428,-3710.057,0.000129,2]
[327989440,1716757838438,-3710.647,0.000129,2]
[327989441,1716757838448,-3668.768,0.000129,2]
[327989442,1716757838458,-362.38046027,0.000129,2]
[327989443,1716757838467,-288.98874848,0.000129,2]
[327989444,1716757838477,-10000.0,0.000129,2]
[327989445,1716757838487,-180.26956979,0.000129,2]
[327989446,1716757838497,-19743.29045707,0.000129,2]
[327989447,1716757838507,-166.0239256,0.000129,2]
[327989448,1716757838516,-6457.72293586,0.000129,2]
[327989449,1716757838526,-889.84004813,0.000129,2]
[327989450,1716757838535,-318.97806809,0.000129,2]
[327989451,1716757838545,-1037.4112342,0.000129,2]
[327989452,1716757838555,-1000.0,0.00012935,2]
[327989454,1716757838564,-1030.0601926,0.00012935,2]
[327989456,1716757838576,-77.9365074,0.00012935,2]
[327989458,1716757838586,-4597.25690778,0.00012986,2]
[327989460,1716757838595,-164.3,0.0001299,2]
[327989462,1716757838605,-160.8020285,0.0001299,2]
[327989464,1716757838614,-160.8020285,0.0001299,2]
[327989466,1716757838623,-223.69513029,0.00012998,2]
[327989468,1716757838633,-360.33029721,0.00012998,2]
[327989470,1716757838642,-502.56244325,0.00012998,2]
[327989472,1716757838651,-365.41188628,0.00012998,2]
[327989474,1716757838660,-723.13012267,0.00012998,2]
[327989476,1716757838670,-364.27737293,0.00012998,2]
[327989478,1716757838680,-1465.62018346,0.00012998,2]
[327989480,1716757838689,-155.0,0.00012998,2]
[327989481,1716757838699,-15003.84293463,0.00012998,2]
[327989482,1716757838708,-155.0,0.00012998,2]
[327989483,1716757838718,-321.83343734,0.00012998,2]
[327989484,1716757838727,-2000.83899828,0.00012998,2]
[327989485,1716757838736,-1386.55437292,0.00012998,2]
[327989486,1716757838745,-3139.27039764,0.00012999,2]
[327989487,1716757838754,-2537.17006111,0.00012999,2]
[327989488,1716757838764,-221366.42051385,0.00013,2]
[327989491,1716757840527,-436.65989964,0.000129,2]
[327989492,1716757840537,-24637.82268048,0.00013,2]
[327989493,1716757840562,-200519.89652394,0.00013,2]
[327989494,1716757840573,-468.67992952,0.00013,2]
[327989495,1716757840584,-1058.52056441,0.00013,2]
[327989496,1716757841244,-78432.0,0.00013,2]
[327989497,1716757841289,-681.33262632,0.00013,2]
[327989499,1716757842688,-5031.76737515,0.00013,2]
[327989501,1716757842701,-1789.65068256,0.00013,2]
[327989502,1716757842713,-679.27978616,0.00013,2]
[327989504,1716757842724,-378.1299995,0.00013,2]
[327989505,1716757842739,-4855.09641126,0.00013,2]
[327989507,1716757843238,-4346.61522739,0.00013,2]
[327989509,1716757844224,-0.00446257,0.00013,2]
[327989510,1716757844652,-997825.19082915,0.00013,2]
[327989515,1716757845911,-313.99159286,0.00013,2]
[327989516,1716757845923,-125079.87189611,0.00013,2]
[327989517,1716757845934,-2957.21493839,0.00013,2]
[327989518,1716757845945,-11103.0,0.00013,2]
[327989519,1716757845963,-520.25973436,0.00013,2]
[327989520,1716757845974,-963.97213361,0.00013,2]
[327989521,1716757846010,-450.07049707,0.00013,2]
[327989522,1716757846021,-1683.86341489,0.00013,2]
[327989523,1716757846032,-316261.73419669,0.00013,2]
[327989524,1716757846046,-7282.623464,0.00013,2]
[327989525,1716757846059,-3167.35508617,0.00013,2]
[327989526,1716757846107,-264.64500046,0.00013,2]
[327989527,1716757846119,-1913.51969023,0.00013,2]
[327989531,1716757859102,400.0,0.000125,4]
[327989532,1716757861198,900.0,0.000126,4]
[327989533,1716757863622,1300.0,0.000127,4]
[327989534,1716757865761,1800.0,0.000128,4]
[327989535,1716757867871,2300.0,0.000129,4]
[327989543,1716758151254,157.052706,0.00031,120]
[327989547,1716758492866,151.91320181,0.00031,120]
[327989554,1716758733104,-167.5,9.431e-05,2]
[327989555,1716758733128,-453.94193361,9.544e-05,2]
[327989559,1716758945116,-195.23244925,9.402e-05,2]
[327989560,1716758945139,-175.15,9.403e-05,2]
[327989561,1716758945161,-1387.20873514,9.999e-05,2]
[327989562,1716758945183,-713.935355,0.00010323,2]
[327989563,1716758945206,-312.7,0.00010324,2]
[327989564,1716758945226,-2142.6892556,0.00011502,2]
[327989565,1716758949159,-240.96048966,9.401e-05,2]